Workbook

Sheet Instructions
A1: Instructions for using the LM76202-Q1/LM74202-Q1 Design Calculator
A2: Design Inputs • Enter the design inputs for operating input voltage, under voltage, overvoltage set points, output capacitance, ambient temperature, load at start-up, maximum continuous load current, and permissible inrush current at start up for charging output capacitance in cells D5 to D14 in Calculation Sheet. • Select the current limit for device (ILimit) at-least 5% more than (Imax + IINRUSH_Permissible) in Cell D15 in Calculation Sheet. UVLO, OVP Calculations • If operation up-to 4.1V is required, connect UVLO to VIN and enter Y in Cell D18. • Enter the value of resistor (R3) between UVLO and OVP pins in Cell D19 in Calculation Sheet • Design Calculator provides the calculated value of R2 and R1 • Select the value of R1, R2 and R3 resistors in cells D23 to D25 close to the calculated values. • Design calculator provides the final under voltage, overvoltage and power fail set points based on selected values of R1 to R3. • Verify the value of current through resistors R1 to R3. If Current < 2uA, the cell turns RED and value of R3 needs to be reduced. Current Limit Calculations • Design Calculator provides the calculated value of resistor for ILIM from Imax and IINRUSH_permissible current provided. • Select the value of resistor for ILIM close to the calculated value. • Design Calculator provides the value of ILIM based on selected value. dVdT resistor and Output ramp time Calculations • Design Calculator provides the Tdvdt with permissible inrush current . • Design Calculator provides calculated value of Cdvdt for permissible inrush current in Cell D42 • Verify that sum of final inrush current and load current during startup is less than final ILimit. If sum of final inrush current and load current during startup is more than ILimit, Cell D48 turns RED. Increase the value of RLstart or reduce IINRUSH_permissible to reduce start-up current. Power Dissipation and thermal regulation at start up. • Design calculator provides the calculated values of power dissipation at start-up • Design calculator checks the power dissipated with thermal shutdown limit data in the adjacent sheet. • If the device goes in to thermal shutdown at startup, Increase the value of RLstart or reduce the value of IINRUSH_permissible Calculations for Current Monitor output • Enter the value for maximum IMON pin voltage based on input range of the ADC connected on IMON pin • Design calculator provides the calculated value of resistor for IMON pin • Select the value of resistor on IMON pin in cell D63 close to calculated value. • Verify that value of voltage is less than 4V. if value is more than 4V, Cell D64 turns RED . Reduce the resistor value in Cell D63. Internal FET parameters and References • Do not change the values and parameters in Internal FET parameters and References.

Sheet Typical_App_Circuit

Sheet Calculation Sheet
B1: LM76202-Q1 and LM74202-Q1 Design Calculator Tool
B2: Constants Cells | C2: Input / Select Cells | D2: Calculation Cells | E2: Verification Cells
C3: Calculated, but can be over-ridden by the user. Note: Once cells are over-ridden, new calculation sheet should be used for the next design
B4: Design Inputs | C4: Description | D4: Value | E4: Units | F4: Tolerance
B5: VIN (min) | C5: Minimum Operating Input Voltage | D5: 4.1 | E5: V
B6: VIN (max) | C6: Maximum Operating Input Voltage (60Vmax for LM76202-Q1, 40Vmax for LM74202-Q1) | D6: 14 | E6: V
B7: VIN (nom) | C7: Nominal operating Input voltage | D7: 12 | E7: V
B8: UVset | C8: Undervoltage Lockout Set point | D8: 4.1 | E8: V
B9: OVset | C9: Over Voltage Cut-Off Set point | D9: 14.1 | E9: V
B10: Cout | C10: Load Capacitance | D10: 6000 | E10: µF | F10: 0.1
B11: TA (max) | C11: Maximum Ambient Temperature | D11: TA = 105C | E11: °C
B12: RLstart | C12: Load during start-up (Assumed to be resistive) | D12: 100000 | E12: Ω
B13: Imax | C13: Maximum continuous load current | D13: 1 | E13: A
B14: IINRUSH_permissible | C14: Permissible inrush current from power supply or system for charging Cout on Start-up | D14: 0.1 | E14: A
B15: ILimit | C15: Current Limit, 5% higher than [Imax + IINRUSH_permissible ] | D15: =G15 -> 1.155 | E15: A | G15: =1.05*(D13+D14) -> 1.155
B17: UVLO, OVP Calculations
B18: Is UVLO connected to IN for operation up-to VIN of 4.1V? | C18: Enter Y or N | D18: Y
B19: R3_sel | C19: Select a value of resistor between OVP and GND pins | D19: 4.4 | E19: kΩ | F19: 0.01 | M19: =IF(N19>976,976,IF(N19<100, 100, N19)) -> 440 | N19: =IF(D19<=9.88, D19*100, IF(AND(D19>9.88, D19<=98.8),D19*10,IF(AND(D19>98.8, D19<=988), D19, IF(AND(D19>988, D19<=9880), D19/10, IF(AND(D19>9880, D19<=98800), D19/100))))) -> 440
B20: R2_cal | C20: Calculated value of Resistor between UVLO and OVP pins | D20: =IF(D18="N", D19*((UVLOref*OVset/(UVset*OVPref))-1), (OVset/OVPref - 1)*ROVP) -> 46.86655462 | E20: kΩ | J20: =D28 -> 3.8 | K20: Power Fail (VIN Falling) | M20: =IF(N20>976,976,IF(N20<100, 100, N20)) -> 468.6655462 | N20: =IF(D20<=9.88, D20*100, IF(AND(D20>9.88, D20<=98.8),D20*10,IF(AND(D20>98.8, D20<=988), D20, IF(AND(D20>988, D20<=9880), D20/10, IF(AND(D20>9880, D20<=98800), D20/100))))) -> 468.6655462
B21: R1_cal | C21: Calculated value of Resistor between UVLO and VIN pins | D21: =IF(D18="N", D19*(OVset/OVPref)*(1-(UVLOref/UVset)), 0) -> 0 | E21: kΩ | J21: =D26 -> 4.1 | K21: UVLO (VIN Rising) | M21: =IF(N21>976,976,IF(N21<100, 100, N21)) -> 100 | N21: =IF(D21<=9.88, D21*100, IF(AND(D21>9.88, D21<=98.8),D21*10,IF(AND(D21>98.8, D21<=988), D21, IF(AND(D21>988, D21<=9880), D21/10, IF(AND(D21>9880, D21<=98800), D21/100))))) -> 0
B22: SELECT THE CLOSEST POSSIBLE RESISTANCE VALUE FOR R1, R2, R3 | J22: =D27 -> 14.27449074 | K22: OVP (VIN Rising)
B23: R3_sel | C23: Selected closest possible value for R3 resistor | D23: =G23 -> 4.32 | E23: kΩ | F23: =F19 -> 0.01 | G23: =M23/POWER(10,ROUND(LOG10(M19/D19),1)) -> 4.32 | M23: =INDEX('Res EIA Tables'!E$5:E$196,MATCH(M19,'Res EIA Tables'!E$5:E$196)) -> 432 | N23: =POWER(10,ROUND(LOG10(M19/D19),1)) -> 100
B24: R2_sel | C24: Selected closest possible value for R2 resistor | D24: =G24 -> 47.5 | E24: kΩ | F24: =F19 -> 0.01 | G24: =M24/POWER(10,ROUND(LOG10(M20/D20),1)) -> 47.5 | M24: =INDEX('Res EIA Tables'!E$5:E$196,2+MATCH(M20,'Res EIA Tables'!E$5:E$196)) -> 475 | N24: =POWER(10,ROUND(LOG10(M20/D20),1)) -> 10
B25: R1_sel | C25: Selected closest possible value for R1 resistor | D25: =G25 -> 0 | E25: kΩ | F25: =F19 -> 0.01 | G25: =IF(D18="N",M25/POWER(10,ROUND(LOG10(M21/D21),1)), 0) -> 0 | M25: =INDEX('Res EIA Tables'!E$5:E$196,MATCH(M21,'Res EIA Tables'!E$5:E$196)) -> 100 | N25: =POWER(10,ROUND(LOG10(M21/D21),1)) -> 
B26: UV_Final | C26: =C8 -> Undervoltage Lockout Set point | D26: =IF(D18="N", UVLOref*((ROVP+RUVLO+RIN)/(ROVP+RUVLO)), 4.1) -> 4.1 | E26: V | F26: =SQRT(F78^2+F23^2+F24^2+F25^2) -> 0.02645751311
B27: OV_Final | C27: =C9 -> Over Voltage Cut-Off Set point | D27: =OVPref*((ROVP+RUVLO+RIN)/ROVP) -> 14.27449074 | E27: V | F27: =SQRT(F80^2+F23^2+F24^2+F25^2) -> 0.02645751311
B28: Power Fail Detection | C28: Power Fail Detection Set Point | D28: =IF(D18="N", (UVLOref-UVLOhys)*((ROVP+RUVLO+RIN)/(ROVP+RUVLO)), 3.8) -> 3.8 | E28: V | F28: =F26 -> 0.02645751311
B29: I_R123 | C29: Verify minimum Current in R1, R2, R3 Branch at Input voltage of Uvset [> 2uA] | D29: =UVset*1000/(ROVP+RUVLO+RIN) -> 79.12003088 | E29: uA
B31: Current Limit Calculations
B32: RLIM_cal | C32: Calculated current limit resistor value | D32: =MAX((12/(Ilimit)),5.36) -> 10.38961039 | E32: kΩ | F32: 0.01 | J32: =Icharge -> 0.1007142857 | K32: Inrush Charging Current | M32: =IF(D32<10, D32*100, IF(AND(D32>=10, D32<100),D32*10,IF(AND(D32>=100, D32<1000), D32, IF(D32>=1000, D32/10)))) -> 103.8961039
B33: SELECT THE CLOSEST POSSIBLE RESISTANCE VALUE FOR RLIM | J33: =Ilimit_final -> 1.176470588 | K33: Overload Current Limit
B34: RLIM | C34: Selected closest possible value for RLIM resistor | D34: =G34 -> 10.2 | E34: kΩ | F34: =F32 -> 0.01 | G34: =M34*D32/M32 -> 10.2 | J34: =#REF! ->  | K34: Fastrip Current Limit | M34: =INDEX('Res EIA Tables'!E$5:E$196,MATCH(M32,'Res EIA Tables'!E$5:E$196)) -> 102
B35: ILimit_Final | C35: Final Current Limit Set Point | D35: =12/Rilim -> 1.176470588 | E35: A | F35: =SQRT(M35^2+F34^2) -> 0.05099019514 | M35: =IF(Imax<0.3, 0.12,0.05) -> 0.05
B38: dV/dT Capacitor and Output ramp Time(Tdvdt) Calculation
B39: Tdvdt_default | C39: Default Tdvdt with no external capacitor connected at dVdT pin | D39: =0.5*Vinmax/24 -> 0.2916666667 | E39: ms
B40: Tdvdt_with_IINRUSH_permissible | C40: Tdvdt with IINRUSH_permissible | D40: =(Cout*10^-3*VINnom)/(INRUSH) -> 720 | E40: ms
B41: Tdvdt required | C41: Enter Tdvdt if lower Tdvdt than the Tdvdt with IINRUSH_premissible is required | D41: 15 | E41: ms
B42: Cdvdt_for_permissible_IINRUSH | C42: Calculated dVdT capacitor value based on permissible Inrush current | D42: =MAX(((I_dvdt*Gain_dvdt*Cout*10^-6)/INRUSH),0.01) -> 6.94566 | E42: µF | F42: =M42 -> 0.1 | M42: =IF(Cdvdt_cal1<=0.1,0.05,0.1) -> 0.1
B43: Cdvdt_for_required_Tdvdt | C43: Calculated dVdT capacitor value based on required Tdvdt | D43: =MAX(((Tdvdt_req*10^-3*Gain_dvdt*I_dvdt)/OVset),0.022) -> 0.12315 | E43: µF | F43: 0.05 | M43: =IF(Cdvdt_cal2<=0.1,0.05,0.1) -> 0.1
B44: SELECT Cdvdt either for required Tdvdt or for Permissible IINRUSH
B45: Cdvdt | C45: Enter Selected value for CdV/dT capacitor | D45: =D42 -> 6.94566 | E45: µF | F45: =F42 -> 0.1
B46: Tdvdt_Final | C46: Final Output Voltage ramp time (Tdvdt) | D46: =((Cdvdt*10^3*Vinmax)/(I_dvdt*Gain_dvdt)) -> 840 | E46: ms | F46: =SQRT(F81^2+F45^2+F82^2) -> 0.1224744871
B47: IINRUSH_Final | C47: Final Inrush current for charging Cout | D47: =(Cout*10^-6*OVset)/(Tdvdt*10^-3) -> 0.1007142857 | E47: A
B48: IINRUSH_Final + ILoad_startup | C48: Is IINRUSH_Final + ILoad_startup less than ILimit_Final? | D48: =(Cout*10^-6*OVset)/(Tdvdt*10^-3)+OVset/RLstart -> 0.1008552857 | E48: A
B50: Total Power dissipation at Start-up and Thermal Regulation
B51: Pd_dvdt | C51: Power dissipation due to output capacitance at start-up | D51: =0.5*Vinmax*Icharge -> 0.705 | E51: W
B52: Pd_Rlstart | C52: Power dissipation due to load resistance during start-up | D52: =(1/6)*(Vinmax^2)/RLstart -> 0.0003266666667 | E52: W
B53: Pd_startup | C53: Total power dissipation during start-up | D53: =D51+D52 -> 0.7053266667 | E53: W
C54: Maximum power dissipation allowed before thermal regulation | D54: =INDEX('Thermal Shutdown Limit Plot'!A3:A26,IF(Ta="TA = 25C", (MATCH(Tdvdt,'Thermal Shutdown Limit Plot'!C3:C26,-1)), IF(Ta="TA = 85C", (MATCH(Tdvdt, 'Thermal Shutdown Limit Plot'!D3:D26,-1)), IF(Ta="TA = 125C", (MATCH(Tdvdt,'Thermal Shutdown Limit Plot'!F3:F26,-1)),IF(Ta="TA = 105C", (MATCH(Tdvdt,'Thermal Shutdown Limit Plot'!E3:E26,-1)),IF(Ta="TA = -40C", (MATCH(Tdvdt,'Thermal Shutdown Limit Plot'!B3:B26,-1)),0)))))) -> 3 | E54: W
C55: Will Device go into thermal shutdown at start-up? | D55: =IF(D53*1.5<D54,"NO","YES") -> NO
B59: Calculations for CURRENT MONITOR
B60: VMON_Max | C60: Maximum allowable voltage at IMON for Maximum Load Current (Max ADC input voltage for IMON) | D60: 4 | E60: V
B61: RIMON_cal | C61: Calculated IMON resistor value | D61: =MIN((D60*1000)/(Ilimit*Gain_IMON), (MIN(4,UVset-1.5)*1000/(Gain_IMON*Ilimit_final*1.1))) -> 25.6654434 | E61: kΩ | F61: 0.01 | M61: =IF(D61<10, D61*100, IF(AND(D61>=10, D61<100),D61*10,IF(AND(D61>=100, D61<1000), D61, IF(D61>=1000, D61/10)))) -> 256.654434
B62: SELECT THE CLOSEST POSSIBLE RESISTANCE VALUE FOR RIMON
B63: RIMON_sel | C63: Selected closest possible value for IMON resistor | D63: =G63 -> 26.1 | E63: kΩ | F63: =F61 -> 0.01 | G63: =M63*D61/M61 -> 26.1 | M63: =INDEX('Res EIA Tables'!E$5:E$196,2+MATCH(M61,'Res EIA Tables'!E$5:E$196)) -> 261
B64: VMON_Max | C64: Verify Voltage at IMON for Maximum Load Current | D64: =(Ilimit_final*Gain_IMON*RIMON_sel*0.001) -> 2.403656471 | E64: V | F64: =SQRT(M35^2+F84^2+F63^2) -> 0.09486832981
B66: Steady state Voltage drop & Power dissipation
B67: Parameter | C67: Description | D67: Value | E67: Units | F67: Tolerance
B68: Vdrop | C68: Maximum voltage drop across the device at TA = 25°C | D68: =Imax*Rdson_25deg -> 150 | E68: mV
B69: Pdiss_ss | C69: Steady state power dissipation with maximum current at TA = 25°C | D69: =Imax^2*Rdson_25deg -> 150 | E69: mW
B71: Internal FET Parameters
B72: Parameter | C72: Description | D72: Value | E72: Units | F72: Tolerance
B73: Rds(on) | C73: FET maximum Rds(on) at 25°C | D73: 150 | E73: mΩ
B74: Rds(on)_85degC | C74: FET maximum Rds(on) at 85°C | D74: 220 | E74: mΩ
B75: Rds(on)_125degC | C75: FET maximum Rds(on) at 125°C | D75: 260 | E75: mΩ
B77: Internal References
B78: V(UVLOR) | C78: UVLO Threshold Voltage, Rising | D78: 1.19 | E78: V | F78: 0.02
B79: V(UVLOHys) | C79: UVLO Hysteresis | D79: 0.09 | E79: V
B80: V(OVPR) | C80: Over-Voltage Threshold Voltage, Rising | D80: 1.19 | E80: V | F80: 0.02
B81: I(dVdT) | C81: dVdT Charging Current | D81: 4.7 | E81: uA | F81: 0.05
B82: GAIN(dVdT) | C82: dVdT to OUT Gain | D82: 24.63 | F82: 0.05
B83: TdVdT | C83: Default Start-up Time with dVdT = Open | D83: 1.6 | E83: ms
B84: Imon_Gain | C84: Gain Factor I(IMON):I(OUT) | D84: 78.28 | E84: uA/A | F84: 0.08

Sheet Thermal Shutdown Limit Plot
A1: Thermal Shutdown Time (ms) Vs. Power Dissipation (W) | H1: Title of Graph | J1: Thermal Shutdown Time Vs. Power Dissipation
A2: Power Dissipation (W) | B2: TA = -40C | C2: TA = 25C | D2: TA = 85C | E2: TA = 105C | F2: TA = 125C
A3: 1 | B3: 100000 | C3: 100000 | D3: 100000 | E3: 100000 | F3: 100000 | H3: Lable | I3: X-Axis | J3: Power Dissipation (W)
A4: 2 | B4: 100000 | C4: 100000 | D4: 100000 | E4: 100000 | F4: 1760 | I4: Y-Axis | J4: Thermal Shutdown time (ms)
A5: 3 | B5: 100000 | C5: 100000 | D5: 100000 | E5: 2641 | F5: 325
A6: 4 | B6: 100000 | C6: 100000 | D6: 3092 | E6: 762.946 | F6: 102.417
A7: 5 | B7: 100000 | C7: 100000 | D7: 1551 | E7: 315.305 | F7: 42.578
A8: 6 | B8: 100000 | C8: 13880 | D8: 711.162 | E8: 153.28 | F8: 21.404
A9: 7 | B9: 100000 | C9: 3038 | D9: 372.842 | E9: 84.235 | F9: 12.428
A10: 8 | B10: 100000 | C10: 1542 | D10: 217.491 | E10: 62.831 | F10: 8.055
A11: 9 | B11: 100000 | C11: 916 | D11: 136.939 | E11: 39.931 | F11: 5.754
A12: 10 | B12: 8670 | C12: 593.786 | D12: 91.83 | E12: 27.043 | F12: 4.407
A13: 12 | B13: 2420 | C13: 346.6 | D13: 45.109 | E13: 14.085 | F13: 3.521
A14: 14 | B14: 1194 | C14: 193.786 | D14: 25.086 | E14: 8.562 | F14: 2.621
A15: 16 | B15: 692.75 | C15: 118.757 | D15: 15.65 | E15: 5.869 | F15: 2.07
A16: 18 | B16: 438.435 | C16: 78.021 | D16: 10.644 | E16: 4.459 | F16: 1.72
A17: 20 | B17: 292.29 | C17: 53.625 | D17: 7.595 | E17: 3.51 | F17: 1.465
A18: 25 | B18: 127.158 | C18: 24.856 | D18: 4.235 | E18: 2.3 | F18: 1.077
A19: 30 | B19: 65.362 | C19: 13.809 | D19: 2.888 | E19: 1.733 | F19: 0.853855
A20: 35 | B20: 37.399 | C20: 8.654 | D20: 2.169 | E20: 1.383 | F20: 0.706559
A21: 40 | B21: 22.727 | C21: 5.961 | D21: 1.738 | E21: 1.151 | F21: 0.60759
A22: 50 | B22: 10.069 | C22: 3.429 | D22: 1.266 | E22: 0.85615 | F22: 0.475259
A23: 60 | B23: 6.306 | C23: 2.564 | D23: 1.003 | E23: 0.71807 | F23: 0.405
A24: 75 | B24: 3.441 | C24: 1.735 | D24: 0.759494 | E24: 0.56157 | F24: 0.322209
A25: 100 | B25: 2.054 | C25: 1.171 | D25: 0.548331 | E25: 0.424 | F25: 0.247411
C33: Pd (W) | D33: Tstart-up (ms)
B34: Maximum Point | C34: ='Calculation Sheet'!D54 -> 3 | D34: =Tdvdt -> 840
B35: Operating Point | C35: ='Calculation Sheet'!D53 -> 0.7053266667 | D35: =D34 -> 840

Sheet Res EIA Tables
A1: Standard EIA Decade Resistor Values
A3: 0.2 | B3: 0.1 | C3: 0.05 | D3: 0.02 | E3: 0.01 | F3: 0.5%, 0.25%, 0.1%
A4: E6 | B4: E12 | C4: E24 | D4: E48 | E4: E96 | F4: E192
A5: 100 | B5: 100 | C5: 100 | D5: 100 | E5: 100 | F5: 100
F6: 101
E7: 102 | F7: 102
F8: 104
D9: 105 | E9: 105 | F9: 105
F10: 106
E11: 107 | F11: 107
F12: 109
C13: 110 | D13: 110 | E13: 110 | F13: 110
F14: 111
E15: 113 | F15: 113
F16: 114
D17: 115 | E17: 115 | F17: 115
F18: 117
E19: 118 | F19: 118
F20: 120
B21: 120 | C21: 120 | D21: 121 | E21: 121 | F21: 121
F22: 123
E23: 124 | F23: 124
F24: 126
D25: 127 | E25: 127 | F25: 127
F26: 129
E27: 130 | F27: 130
F28: 132
C29: 130 | D29: 133 | E29: 133 | F29: 133
F30: 135
E31: 137 | F31: 137
F32: 138
D33: 140 | E33: 140 | F33: 140
F34: 142
E35: 143 | F35: 143
F36: 145
A37: 150 | B37: 150 | C37: 150 | D37: 147 | E37: 147 | F37: 147
F38: 149
E39: 150 | F39: 150
F40: 152
D41: 154 | E41: 154 | F41: 154
F42: 156
E43: 158 | F43: 158
F44: 160
C45: 160 | D45: 162 | E45: 162 | F45: 162
F46: 164
E47: 165 | F47: 165
F48: 167
D49: 169 | E49: 169 | F49: 169
F50: 172
E51: 174 | F51: 174
F52: 176
B53: 180 | C53: 180 | D53: 178 | E53: 178 | F53: 178
F54: 180
E55: 182 | F55: 182
F56: 184
D57: 187 | E57: 187 | F57: 187
F58: 189
E59: 191 | F59: 191
F60: 193
C61: 200 | D61: 196 | E61: 196 | F61: 196
F62: 198
E63: 200 | F63: 200
F64: 203
D65: 205 | E65: 205 | F65: 205
F66: 208
E67: 210 | F67: 210
F68: 213
A69: 220 | B69: 220 | C69: 220 | D69: 215 | E69: 215 | F69: 215
F70: 218
E71: 221 | F71: 221
F72: 223
D73: 226 | E73: 226 | F73: 226
F74: 229
E75: 232 | F75: 232
F76: 234
C77: 240 | D77: 237 | E77: 237 | F77: 237
F78: 240
E79: 243 | F79: 243
F80: 246
D81: 249 | E81: 249 | F81: 249
F82: 252
E83: 255 | F83: 255
F84: 258
B85: 270 | C85: 270 | D85: 261 | E85: 261 | F85: 261
F86: 264
E87: 267 | F87: 267
F88: 271
D89: 274 | E89: 274 | F89: 274
F90: 277
E91: 280 | F91: 280
F92: 284
C93: 300 | D93: 287 | E93: 287 | F93: 287
F94: 291
E95: 294 | F95: 294
F96: 298
D97: 301 | E97: 301 | F97: 301
F98: 305
E99: 309 | F99: 309
F100: 312
A101: 330 | B101: 330 | C101: 330 | D101: 316 | E101: 316 | F101: 316
F102: 320
E103: 324 | F103: 324
F104: 328
D105: 332 | E105: 332 | F105: 332
F106: 336
E107: 340 | F107: 340
F108: 344
C109: 360 | D109: 348 | E109: 348 | F109: 348
F110: 352
E111: 357 | F111: 357
F112: 361
D113: 365 | E113: 365 | F113: 365
F114: 370
E115: 374 | F115: 374
F116: 379
B117: 390 | C117: 390 | D117: 383 | E117: 383 | F117: 383
F118: 388
E119: 392 | F119: 392
F120: 397
D121: 402 | E121: 402 | F121: 402
F122: 407
E123: 412 | F123: 412
F124: 417
C125: 430 | D125: 422 | E125: 422 | F125: 422
F126: 427
E127: 432 | F127: 432
F128: 437
D129: 442 | E129: 442 | F129: 442
F130: 448
E131: 453 | F131: 453
F132: 459
A133: 470 | B133: 470 | C133: 470 | D133: 464 | E133: 464 | F133: 464
F134: 470
E135: 475 | F135: 475
F136: 481
D137: 487 | E137: 487 | F137: 487
F138: 493
E139: 499 | F139: 499
F140: 505
C141: 510 | D141: 511 | E141: 511 | F141: 511
F142: 517
E143: 523 | F143: 523
F144: 530
D145: 536 | E145: 536 | F145: 536
F146: 542
E147: 549 | F147: 549
F148: 556
B149: 560 | C149: 560 | D149: 562 | E149: 562 | F149: 562
F150: 569
E151: 576 | F151: 576
F152: 583
D153: 590 | E153: 590 | F153: 590
F154: 597
E155: 604 | F155: 604
F156: 612
C157: 620 | D157: 619 | E157: 619 | F157: 619
F158: 626
E159: 634 | F159: 634
F160: 642
D161: 649 | E161: 649 | F161: 649
F162: 657
E163: 665 | F163: 665
F164: 673
A165: 680 | B165: 680 | C165: 680 | D165: 681 | E165: 681 | F165: 681
F166: 690
E167: 698 | F167: 698
F168: 706
D169: 715 | E169: 715 | F169: 715
F170: 723
E171: 732 | F171: 732
F172: 741
C173: 750 | D173: 750 | E173: 750 | F173: 750
F174: 759
E175: 768 | F175: 768
F176: 777
D177: 787 | E177: 787 | F177: 787
F178: 796
E179: 806 | F179: 806
F180: 816
B181: 820 | C181: 820 | D181: 825 | E181: 825 | F181: 825
F182: 835
E183: 845 | F183: 845
F184: 856
D185: 866 | E185: 866 | F185: 866
F186: 876
E187: 887 | F187: 887
F188: 898
C189: 910 | D189: 909 | E189: 909 | F189: 909
F190: 920
E191: 931 | F191: 931
F192: 942
D193: 953 | E193: 953 | F193: 953
F194: 965
E195: 976 | F195: 976
F196: 988

Sheet Cap Tables
A1: Capacitors Lookup Table
A2: µF
A3: 0.01
A4: 0.015
A5: 0.022
A6: 0.033
A7: 0.047
A8: 0.068
A9: 0.1
A10: 0.15
A11: 0.22
A12: 0.33
A13: 0.47
A14: 0.68
A15: 1
A16: 1.5
A17: 2.2
A18: 3.3
A19: 4.7
A20: 6.8
A21: 10
A22: 15
A23: 22
A24: 33
A25: 47
A26: 68
A27: 100
